[Event "*** Titled Tuesday Blitz"]
[Site "Chess.com"]
[Date "2019.06.04"]
[Round "7"]
[White "H3nriqueTV"]
[Black "nitpicker"]
[Result "1-0"]
[WhiteElo "2184"]
[BlackElo "2204"]
[TimeControl "180+2"]
[EndTime "14:33:28 PDT"]
[Termination "H3nriqueTV won on time"]

1. e4 {[%clk 0:03:01.9]} 1... e5 {[%clk 0:02:58.7]} 2. Nf3 {[%clk 0:02:59.1]}
2... Nc6 {[%clk 0:02:59.7]} 3. Bc4 {[%clk 0:02:58.1]} 3... Bc5 {[%clk
0:02:59.7]} 4. O-O {[%clk 0:02:58.9]} 4... d6 {[%clk 0:02:55.9]} 5. d3 {[%clk
0:03:00.2]} 5... Nf6 {[%clk 0:02:54.4]} 6. c3 {[%clk 0:03:01.1]} 6... a6 {[%clk
0:02:38.1]} 7. h3 {[%clk 0:02:59.1]} 7... h6 {[%clk 0:02:37.7]} 8. Nbd2 {[%clk
0:02:53.2]} 8... Ba7 {[%clk 0:02:38.2]} 9. Re1 {[%clk 0:02:49.4]} 9... Be6
{[%clk 0:02:35.3]} 10. Bxe6 {[%clk 0:02:46.8]} 10... fxe6 {[%clk 0:02:35.9]} 11.
Qb3 {[%clk 0:02:48.4]} 11... Qc8 {[%clk 0:02:31.3]} 12. Nf1 {[%clk 0:02:46.2]}
12... O-O {[%clk 0:02:31.2]} 13. Ng3 {[%clk 0:02:43.2]} 13... d5 {[%clk
0:02:23.2]} 14. Be3 {[%clk 0:02:41.1]} 14... d4 {[%clk 0:01:59.9]} 15. Bd2
{[%clk 0:02:37.5]} 15... b5 {[%clk 0:01:52.3]} 16. Rac1 {[%clk 0:02:34.8]} 16...
Qd7 {[%clk 0:01:46.4]} 17. Qc2 {[%clk 0:02:27.2]} 17... dxc3 {[%clk 0:01:33.7]}
18. Qxc3 {[%clk 0:02:27.2]} 18... Nd4 {[%clk 0:01:27.8]} 19. Nxe5 {[%clk
0:02:22.4]} 19... Qe8 {[%clk 0:01:21.5]} 20. Qxc7 {[%clk 0:02:13.4]} 20... Bb8
{[%clk 0:00:48.8]} 21. Qc5 {[%clk 0:02:12.9]} 21... Ba7 {[%clk 0:00:47.3]} 22.
Qc3 {[%clk 0:02:12.8]} 22... Nd7 {[%clk 0:00:38.3]} 23. Be3 {[%clk 0:01:56.3]}
23... b4 {[%clk 0:00:22.1]} 24. Qc7 {[%clk 0:01:53.5]} 24... Nxe5 {[%clk
0:00:16.9]} 25. Qxe5 {[%clk 0:01:53.3]} 25... Rd8 {[%clk 0:00:16.9]} 26. Rc7
{[%clk 0:01:51.3]} 26... Rf7 {[%clk 0:00:15.6]} 27. Rec1 {[%clk 0:01:46.9]}
27... Bb8 {[%clk 0:00:15.8]} 28. Bxd4 {[%clk 0:01:47.7]} 28... Rxd4 {[%clk
0:00:12.9]} 29. Qxd4 {[%clk 0:01:43.1]} 29... Bxc7 {[%clk 0:00:13.1]} 30. e5
{[%clk 0:01:38.2]} 30... Kh7 {[%clk 0:00:10.2]} 31. Qxb4 {[%clk 0:01:37.3]}
31... Bxe5 {[%clk 0:00:09.9]} 32. Qe4+ {[%clk 0:01:38.6]} 1-0

[Event "*** Titled Tuesday Blitz"]
[Site "Chess.com"]
[Date "2019.06.04"]
[Round "7"]
[White "Alexander_Donchenko"]
[Black "chessking2151"]
[Result "0-1"]
[WhiteElo "2743"]
[BlackElo "2606"]
[TimeControl "180+2"]
[EndTime "14:33:40 PDT"]
[Termination "chessking2151 won by resignation"]

1. e4 {[%clk 0:03:01.9]} 1... e5 {[%clk 0:02:56.8]} 2. Nf3 {[%clk 0:03:03]} 2...
Nc6 {[%clk 0:02:50.5]} 3. Bb5 {[%clk 0:03:03.5]} 3... a6 {[%clk 0:02:50.9]} 4.
Ba4 {[%clk 0:03:04]} 4... Nf6 {[%clk 0:02:52.4]} 5. O-O {[%clk 0:03:04.5]} 5...
Be7 {[%clk 0:02:54]} 6. Re1 {[%clk 0:03:05.5]} 6... b5 {[%clk 0:02:55.2]} 7. Bb3
{[%clk 0:03:06.4]} 7... O-O {[%clk 0:02:56.8]} 8. h3 {[%clk 0:03:06.3]} 8... Bb7
{[%clk 0:02:57.2]} 9. c3 {[%clk 0:03:06.8]} 9... d5 {[%clk 0:02:47.7]} 10. exd5
{[%clk 0:03:07.2]} 10... Nxd5 {[%clk 0:02:30.6]} 11. Nxe5 {[%clk 0:03:08]} 11...
Nxe5 {[%clk 0:02:29.8]} 12. Rxe5 {[%clk 0:03:09.9]} 12... Bf6 {[%clk 0:02:13.4]}
13. Bxd5 {[%clk 0:02:59.3]} 13... Bxd5 {[%clk 0:02:03.8]} 14. Re1 {[%clk
0:03:00.1]} 14... Qd6 {[%clk 0:01:44.4]} 15. d4 {[%clk 0:02:59.8]} 15... Qc6
{[%clk 0:01:42.8]} 16. Qg4 {[%clk 0:02:55.4]} 16... Rae8 {[%clk 0:01:36]} 17.
Rxe8 {[%clk 0:02:49.9]} 17... Rxe8 {[%clk 0:01:35.7]} 18. Be3 {[%clk 0:02:51.3]}
18... h5 {[%clk 0:01:36.3]} 19. Qg3 {[%clk 0:02:48.1]} 19... Re4 {[%clk
0:00:50.3]} 20. Nd2 {[%clk 0:02:38.2]} 20... Bh4 {[%clk 0:00:50.2]} 21. Qh2
{[%clk 0:02:08.9]} 21... Re6 {[%clk 0:00:49.8]} 22. Qf4 {[%clk 0:02:07.2]} 22...
Be7 {[%clk 0:00:22.2]} 23. Nf3 {[%clk 0:01:59.7]} 23... Rg6 {[%clk 0:00:17.4]}
24. Kh2 {[%clk 0:01:29.9]} 24... Bd6 {[%clk 0:00:16.8]} 25. Ne5 {[%clk
0:01:31.1]} 25... Rxg2+ {[%clk 0:00:16.9]} 26. Kh1 {[%clk 0:01:30.8]} 26... Bxe5
{[%clk 0:00:13.4]} 27. Qxe5 {[%clk 0:01:32.1]} 27... Rg5+ {[%clk 0:00:07.9]} 28.
Kh2 {[%clk 0:01:33.5]} 28... Rxe5 {[%clk 0:00:09.2]} 29. dxe5 {[%clk 0:01:35.4]}
29... Qe6 {[%clk 0:00:10.3]} 30. f4 {[%clk 0:01:29.3]} 30... Qg6 {[%clk
0:00:11.4]} 31. Rg1 {[%clk 0:01:27.7]} 31... Qc2+ {[%clk 0:00:12.6]} 32. Kg3
{[%clk 0:01:28.1]} 32... Qe2 {[%clk 0:00:13.9]} 33. Bd4 {[%clk 0:01:26.1]} 33...
Qf3+ {[%clk 0:00:14.1]} 34. Kh4 {[%clk 0:01:25.7]} 34... Qxf4+ {[%clk
0:00:15.4]} 35. Kxh5 {[%clk 0:01:26.6]} 35... Bf3+ {[%clk 0:00:16.6]} 0-1

[Event "*** Titled Tuesday Blitz"]
[Site "Chess.com"]
[Date "2019.06.04"]
[Round "7"]
[White "Mischuk_D"]
[Black "Sebastian"]
[Result "0-1"]
[WhiteElo "2715"]
[BlackElo "2877"]
[TimeControl "180+2"]
[EndTime "14:33:47 PDT"]
[Termination "Sebastian won by resignation"]

1. d4 {[%clk 0:03:01.9]} 1... Nf6 {[%clk 0:03:00.6]} 2. c4 {[%clk 0:03:02.5]}
2... e6 {[%clk 0:03:01.9]} 3. Nf3 {[%clk 0:03:03.1]} 3... d5 {[%clk 0:03:00.5]}
4. Nc3 {[%clk 0:03:01.9]} 4... c5 {[%clk 0:03:01.8]} 5. cxd5 {[%clk 0:02:59]}
5... Nxd5 {[%clk 0:03:03.1]} 6. e4 {[%clk 0:02:57]} 6... Nxc3 {[%clk 0:03:04.7]}
7. bxc3 {[%clk 0:02:58.2]} 7... cxd4 {[%clk 0:03:06.6]} 8. cxd4 {[%clk
0:02:59.4]} 8... Bb4+ {[%clk 0:03:08.3]} 9. Bd2 {[%clk 0:03:00.7]} 9... Bxd2+
{[%clk 0:03:10]} 10. Qxd2 {[%clk 0:03:01.9]} 10... O-O {[%clk 0:03:11.9]} 11.
Bb5 {[%clk 0:02:55.2]} 11... b6 {[%clk 0:03:11.5]} 12. O-O {[%clk 0:02:54.7]}
12... Bb7 {[%clk 0:03:12.6]} 13. Rfe1 {[%clk 0:02:55.7]} 13... Nd7 {[%clk
0:03:13.3]} 14. Rad1 {[%clk 0:02:51.4]} 14... Nf6 {[%clk 0:03:11.3]} 15. Qf4
{[%clk 0:02:41.6]} 15... Rc8 {[%clk 0:03:12]} 16. h3 {[%clk 0:02:34.5]} 16...
Qc7 {[%clk 0:03:05.6]} 17. Qh4 {[%clk 0:02:30.3]} 17... Rfd8 {[%clk 0:02:59.1]}
18. Bd3 {[%clk 0:02:28.7]} 18... h6 {[%clk 0:02:54.4]} 19. d5 {[%clk 0:02:12.2]}
19... exd5 {[%clk 0:02:52.7]} 20. e5 {[%clk 0:02:13.7]} 20... Ne4 {[%clk
0:02:53.8]} 21. Qf4 {[%clk 0:02:06.7]} 21... Qe7 {[%clk 0:02:38.5]} 22. Nd4
{[%clk 0:02:02.8]} 22... Qg5 {[%clk 0:02:39]} 23. Qxg5 {[%clk 0:01:45.2]} 23...
hxg5 {[%clk 0:02:38.7]} 24. Nb5 {[%clk 0:01:41]} 24... Nc3 {[%clk 0:01:38.6]}
25. Nd6 {[%clk 0:01:36.2]} 25... Nxd1 {[%clk 0:01:29.2]} 26. Nxb7 {[%clk
0:01:21.7]} 26... Nc3 {[%clk 0:01:05.2]} 27. Nxd8 {[%clk 0:01:13.6]} 27... Rxd8
{[%clk 0:01:06.1]} 28. a3 {[%clk 0:01:10.2]} 28... Kf8 {[%clk 0:01:06.9]} 29. f3
{[%clk 0:01:05.5]} 29... Ke7 {[%clk 0:01:06.6]} 30. Kf2 {[%clk 0:01:06.6]} 30...
d4 {[%clk 0:01:05.7]} 31. Kg3 {[%clk 0:00:59.5]} 31... Nd5 {[%clk 0:00:56.7]}
32. Rc1 {[%clk 0:00:59.1]} 32... Nf4 {[%clk 0:00:46.6]} 33. Bf5 {[%clk
0:00:43.7]} 33... Ne2+ {[%clk 0:00:46.8]} 0-1

[Event "*** Titled Tuesday Blitz"]
[Site "Chess.com"]
[Date "2019.06.04"]
[Round "7"]
[White "VladDobrov"]
[Black "TomsKantans"]
[Result "1-0"]
[WhiteElo "2823"]
[BlackElo "2552"]
[TimeControl "180+2"]
[EndTime "14:34:03 PDT"]
[Termination "VladDobrov won by resignation"]

1. d4 {[%clk 0:03:01.9]} 1... Nf6 {[%clk 0:03:00.6]} 2. c4 {[%clk 0:03:02.5]}
2... g6 {[%clk 0:03:01.8]} 3. g3 {[%clk 0:03:03.4]} 3... Bg7 {[%clk 0:03:02.8]}
4. Bg2 {[%clk 0:03:04.6]} 4... d5 {[%clk 0:03:03.5]} 5. cxd5 {[%clk 0:03:05.6]}
5... Nxd5 {[%clk 0:03:04.4]} 6. Nf3 {[%clk 0:03:07.2]} 6... O-O {[%clk 0:03:05]}
7. O-O {[%clk 0:03:08.1]} 7... Nc6 {[%clk 0:03:05.4]} 8. e3 {[%clk 0:03:08.3]}
8... Nb6 {[%clk 0:03:03.2]} 9. Nc3 {[%clk 0:03:08.9]} 9... e5 {[%clk 0:03:01.7]}
10. d5 {[%clk 0:03:08.2]} 10... Ne7 {[%clk 0:03:02.9]} 11. e4 {[%clk 0:03:07.3]}
11... Bg4 {[%clk 0:03:04]} 12. Qb3 {[%clk 0:03:03.5]} 12... c6 {[%clk
0:03:01.7]} 13. Bg5 {[%clk 0:02:27.2]} 13... cxd5 {[%clk 0:02:55]} 14. Nxd5
{[%clk 0:02:17.1]} 14... Nbxd5 {[%clk 0:02:55.1]} 15. exd5 {[%clk 0:02:18.1]}
15... Qd6 {[%clk 0:02:38.7]} 16. Nd2 {[%clk 0:02:15.3]} 16... Rfe8 {[%clk
0:00:36]} 17. Nc4 {[%clk 0:02:07.6]} 17... Qd7 {[%clk 0:00:25]} 18. Bxe7 {[%clk
0:01:54.5]} 18... Rxe7 {[%clk 0:00:20.3]} 19. d6 {[%clk 0:01:55.7]} 19... Ree8
{[%clk 0:00:19.9]} 20. Qxb7 {[%clk 0:01:49.6]} 20... Rab8 {[%clk 0:00:19.5]} 21.
Qxd7 {[%clk 0:01:47.9]} 21... Bxd7 {[%clk 0:00:21.4]} 22. Rad1 {[%clk
0:01:34.2]} 22... e4 {[%clk 0:00:21.1]} 23. b3 {[%clk 0:01:33.8]} 23... f5
{[%clk 0:00:21.9]} 24. Rfe1 {[%clk 0:01:33.6]} 24... Kf7 {[%clk 0:00:20.3]} 25.
f3 {[%clk 0:01:34.9]} 25... exf3 {[%clk 0:00:17.1]} 26. Bxf3 {[%clk 0:01:36.8]}
26... Rxe1+ {[%clk 0:00:15]} 27. Rxe1 {[%clk 0:01:38.7]} 27... Bf6 {[%clk
0:00:16.5]} 28. Bd5+ {[%clk 0:01:39.6]} 28... Kf8 {[%clk 0:00:16.5]} 29. Kg2
{[%clk 0:01:33.3]} 29... Rd8 {[%clk 0:00:16.2]} 30. a4 {[%clk 0:01:30.7]} 30...
Bc8 {[%clk 0:00:17.2]} 31. b4 {[%clk 0:01:26.5]} 31... Bc3 {[%clk 0:00:16.7]}
32. Re7 {[%clk 0:01:26.7]} 32... Bxb4 {[%clk 0:00:15.2]} 33. Rf7+ {[%clk
0:01:25.9]} 33... Ke8 {[%clk 0:00:16.6]} 34. Rxh7 {[%clk 0:01:26.1]} 34... Bxd6
{[%clk 0:00:15.8]} 35. Bc6+ {[%clk 0:01:24.2]} 35... Kf8 {[%clk 0:00:07.6]} 36.
Rh8+ {[%clk 0:01:25.3]} 36... Ke7 {[%clk 0:00:09.1]} 37. Rxd8 {[%clk 0:01:26.4]}
1-0

[Event "*** Titled Tuesday Blitz"]
[Site "Chess.com"]
[Date "2019.06.04"]
[Round "7"]
[White "axvesik"]
[Black "PawnEatingZombie"]
[Result "1-0"]
[WhiteElo "2366"]
[BlackElo "2141"]
[TimeControl "180+2"]
[EndTime "14:34:03 PDT"]
[Termination "axvesik won by checkmate"]

1. e4 {[%clk 0:03:01.9]} 1... e6 {[%clk 0:02:59.7]} 2. d4 {[%clk 0:03:02.3]}
2... d5 {[%clk 0:03:01.2]} 3. Nc3 {[%clk 0:03:02.1]} 3... Nf6 {[%clk 0:03:01.9]}
4. Bg5 {[%clk 0:02:57.3]} 4... Bb4 {[%clk 0:03:02]} 5. exd5 {[%clk 0:02:53.3]}
5... Qxd5 {[%clk 0:03:01.7]} 6. Nf3 {[%clk 0:02:53.5]} 6... Ne4 {[%clk
0:02:37.8]} 7. Bd2 {[%clk 0:02:48.2]} 7... Bxc3 {[%clk 0:02:34.5]} 8. bxc3
{[%clk 0:02:48.1]} 8... c5 {[%clk 0:02:33.5]} 9. c4 {[%clk 0:02:30.3]} 9... Qd8
{[%clk 0:01:49.7]} 10. Be3 {[%clk 0:02:25.6]} 10... Qa5+ {[%clk 0:01:23.4]} 11.
Nd2 {[%clk 0:02:20.4]} 11... Nc6 {[%clk 0:01:09]} 12. d5 {[%clk 0:01:50.8]}
12... Ne5 {[%clk 0:01:03.8]} 13. Bd3 {[%clk 0:01:12.7]} 13... Nf6 {[%clk
0:00:50.3]} 14. O-O {[%clk 0:00:58.1]} 14... O-O {[%clk 0:00:51.1]} 15. Nb3
{[%clk 0:00:57.4]} 15... Qc7 {[%clk 0:00:46.6]} 16. Bxc5 {[%clk 0:00:54.9]}
16... Rd8 {[%clk 0:00:44.7]} 17. d6 {[%clk 0:00:55.1]} 17... Qc6 {[%clk
0:00:41.4]} 18. Qe2 {[%clk 0:00:50.2]} 18... Ned7 {[%clk 0:00:21.1]} 19. Ba3
{[%clk 0:00:43.7]} 19... b6 {[%clk 0:00:22.5]} 20. Nd4 {[%clk 0:00:42.6]} 20...
Qa4 {[%clk 0:00:21.5]} 21. Bb2 {[%clk 0:00:37.1]} 21... Nc5 {[%clk 0:00:19.5]}
22. Nb5 {[%clk 0:00:32.3]} 22... Bb7 {[%clk 0:00:17.3]} 23. Bxf6 {[%clk
0:00:29.6]} 23... gxf6 {[%clk 0:00:17.7]} 24. Qg4+ {[%clk 0:00:30.9]} 24... Kf8
{[%clk 0:00:15.5]} 25. Bxh7 {[%clk 0:00:27.3]} 25... Ke8 {[%clk 0:00:11.1]} 26.
Qg8+ {[%clk 0:00:26.7]} 26... Kd7 {[%clk 0:00:12.3]} 27. Qxf7+ {[%clk
0:00:28.6]} 27... Kc6 {[%clk 0:00:13.5]} 28. Qc7# {[%clk 0:00:29.7]} 1-0

[Event "*** Titled Tuesday Blitz"]
[Site "Chess.com"]
[Date "2019.06.04"]
[Round "7"]
[White "Thjop"]
[Black "bugsbunny444"]
[Result "1-0"]
[WhiteElo "2587"]
[BlackElo "2483"]
[TimeControl "180+2"]
[EndTime "14:34:10 PDT"]
[Termination "Thjop won by resignation"]

1. e4 {[%clk 0:03:01.9]} 1... e6 {[%clk 0:03:01.3]} 2. d4 {[%clk 0:03:02.6]}
2... d5 {[%clk 0:03:02.5]} 3. Nd2 {[%clk 0:03:03.3]} 3... Nf6 {[%clk 0:03:03.6]}
4. e5 {[%clk 0:03:04.1]} 4... Nfd7 {[%clk 0:03:05.1]} 5. c3 {[%clk 0:03:05.7]}
5... c5 {[%clk 0:03:06.6]} 6. f4 {[%clk 0:03:07]} 6... Nc6 {[%clk 0:03:06]} 7.
Ndf3 {[%clk 0:03:08.1]} 7... cxd4 {[%clk 0:03:03.5]} 8. cxd4 {[%clk 0:03:09.2]}
8... a5 {[%clk 0:03:05.4]} 9. Bd3 {[%clk 0:03:08.4]} 9... a4 {[%clk 0:03:06.9]}
10. a3 {[%clk 0:03:07.4]} 10... Nb6 {[%clk 0:03:07]} 11. Ne2 {[%clk 0:03:08.1]}
11... Be7 {[%clk 0:03:06.1]} 12. h4 {[%clk 0:03:07.9]} 12... Bd7 {[%clk
0:02:57.2]} 13. h5 {[%clk 0:02:58.8]} 13... Na5 {[%clk 0:02:46.8]} 14. Bd2
{[%clk 0:02:34.1]} 14... Nbc4 {[%clk 0:02:41.1]} 15. Bc3 {[%clk 0:02:28.6]}
15... Nb3 {[%clk 0:02:14.7]} 16. Rb1 {[%clk 0:02:24.8]} 16... Ne3 {[%clk
0:02:13.8]} 17. Qxb3 {[%clk 0:02:13.1]} 17... axb3 {[%clk 0:02:13.1]} 18. Kf2
{[%clk 0:02:15]} 18... Ng4+ {[%clk 0:02:06.1]} 19. Kg3 {[%clk 0:02:16.1]} 19...
f5 {[%clk 0:02:07.3]} 20. Nc1 {[%clk 0:02:10]} 20... Qb6 {[%clk 0:02:01.9]} 21.
Ne2 {[%clk 0:02:10.7]} 21... Bb5 {[%clk 0:02:00.3]} 22. Bxb5+ {[%clk 0:02:10.3]}
22... Qxb5 {[%clk 0:02:01.6]} 23. Rhe1 {[%clk 0:02:11.3]} 23... Kd7 {[%clk
0:01:58.1]} 24. Rbd1 {[%clk 0:02:10.3]} 24... Rag8 {[%clk 0:01:49.7]} 25. Nc1
{[%clk 0:02:06.5]} 25... g5 {[%clk 0:01:48.3]} 26. fxg5 {[%clk 0:02:06.5]} 26...
Bxg5 {[%clk 0:01:48.5]} 27. Nd3 {[%clk 0:02:06.8]} 27... Be3 {[%clk 0:01:32.6]}
28. Nc5+ {[%clk 0:01:49.7]} 28... Ke7 {[%clk 0:01:32.8]} 29. Bb4 {[%clk
0:01:37]} 29... Kf7 {[%clk 0:01:21.8]} 30. Rc1 {[%clk 0:01:20.2]} 30... Bxc1
{[%clk 0:01:11]} 31. Rxc1 {[%clk 0:01:22.1]} 31... Rc8 {[%clk 0:01:11.7]} 32.
Ng5+ {[%clk 0:01:20.7]} 32... Ke8 {[%clk 0:01:08.9]} 33. Ngxe6 {[%clk
0:01:02.7]} 33... b6 {[%clk 0:00:52.2]} 34. Ng7+ {[%clk 0:00:59]} 34... Kd8
{[%clk 0:00:39.8]} 35. Nb7+ {[%clk 0:00:53]} 1-0

[Event "*** Titled Tuesday Blitz"]
[Site "Chess.com"]
[Date "2019.06.04"]
[Round "7"]
[White "awesomevishesh"]
[Black "europa2012"]
[Result "0-1"]
[WhiteElo "2443"]
[BlackElo "2163"]
[TimeControl "180+2"]
[EndTime "14:34:13 PDT"]
[Termination "europa2012 won by checkmate"]

1. e4 {[%clk 0:03:01.9]} 1... e6 {[%clk 0:03:01.2]} 2. d4 {[%clk 0:03:01.9]}
2... d5 {[%clk 0:03:02.5]} 3. Nd2 {[%clk 0:03:02.9]} 3... Nf6 {[%clk 0:03:03.7]}
4. e5 {[%clk 0:03:02.7]} 4... Nfd7 {[%clk 0:03:04.9]} 5. Bd3 {[%clk 0:03:03.7]}
5... c5 {[%clk 0:03:06.1]} 6. c3 {[%clk 0:03:04.5]} 6... Nc6 {[%clk 0:03:07.4]}
7. Ne2 {[%clk 0:02:58.2]} 7... Qb6 {[%clk 0:03:08.3]} 8. Nf3 {[%clk 0:02:50]}
8... cxd4 {[%clk 0:03:09.7]} 9. cxd4 {[%clk 0:02:49.6]} 9... f6 {[%clk 0:03:11]}
10. exf6 {[%clk 0:02:47.6]} 10... Nxf6 {[%clk 0:03:12.9]} 11. O-O {[%clk
0:02:46.5]} 11... Bd6 {[%clk 0:03:14.1]} 12. a3 {[%clk 0:02:17.5]} 12... O-O
{[%clk 0:03:13.2]} 13. Re1 {[%clk 0:02:02.8]} 13... e5 {[%clk 0:03:06.8]} 14.
dxe5 {[%clk 0:02:00.4]} 14... Nxe5 {[%clk 0:03:07.9]} 15. Nxe5 {[%clk
0:01:53.9]} 15... Bxe5 {[%clk 0:03:08.3]} 16. Be3 {[%clk 0:01:41.7]} 16... Qc7
{[%clk 0:02:54.4]} 17. g3 {[%clk 0:01:31.8]} 17... Ng4 {[%clk 0:02:51.1]} 18.
Qd2 {[%clk 0:00:28]} 18... Qf7 {[%clk 0:02:42.4]} 19. Bf4 {[%clk 0:00:20.3]}
19... Qh5 {[%clk 0:02:30.5]} 20. h4 {[%clk 0:00:17.2]} 20... Bf6 {[%clk
0:02:31.3]} 21. f3 {[%clk 0:00:10.9]} 21... Ne5 {[%clk 0:02:27.8]} 22. Nd4
{[%clk 0:00:06.5]} 22... Nxf3+ {[%clk 0:02:19.3]} 23. Nxf3 {[%clk 0:00:07.1]}
23... Qxf3 {[%clk 0:02:20.5]} 24. Be2 {[%clk 0:00:07.4]} 24... Qe4 {[%clk
0:02:15.4]} 25. Rad1 {[%clk 0:00:07.1]} 25... Bh3 {[%clk 0:02:06.9]} 26. Qxd5+
{[%clk 0:00:06.9]} 26... Qxd5 {[%clk 0:02:08.3]} 27. Rxd5 {[%clk 0:00:08.1]}
27... Bxb2 {[%clk 0:02:04.7]} 28. Bc4 {[%clk 0:00:08.1]} 28... Kh8 {[%clk
0:02:03.5]} 29. a4 {[%clk 0:00:08.3]} 29... Rac8 {[%clk 0:02:02.4]} 30. Bf1
{[%clk 0:00:06.2]} 30... Bg4 {[%clk 0:02:00.4]} 31. Rd7 {[%clk 0:00:05.9]} 31...
Bxd7 {[%clk 0:02:01]} 32. Bg2 {[%clk 0:00:04.8]} 32... Bd4+ {[%clk 0:02:01.4]}
33. Kh2 {[%clk 0:00:05.1]} 33... Bc6 {[%clk 0:02:02.5]} 34. Bxc6 {[%clk
0:00:05.4]} 34... Rxc6 {[%clk 0:02:03.7]} 35. Re7 {[%clk 0:00:06.4]} 35... Rc2+
{[%clk 0:02:01.4]} 36. Kh3 {[%clk 0:00:06.9]} 36... h6 {[%clk 0:01:54.7]} 37.
Rxb7 {[%clk 0:00:07.8]} 37... Ra2 {[%clk 0:01:54.4]} 38. Bd6 {[%clk 0:00:07.1]}
38... Rff2 {[%clk 0:01:51.1]} 39. Rb8+ {[%clk 0:00:07.5]} 39... Kh7 {[%clk
0:01:52.4]} 40. Rb7 {[%clk 0:00:07.5]} 40... h5 {[%clk 0:01:49.7]} 41. g4 {[%clk
0:00:07.5]} 41... Rf3+ {[%clk 0:01:45.7]} 42. Bg3 {[%clk 0:00:07.8]} 42... Be5
{[%clk 0:01:44]} 43. gxh5 {[%clk 0:00:08.2]} 43... Rxg3# {[%clk 0:01:44.7]} 0-1

[Event "*** Titled Tuesday Blitz"]
[Site "Chess.com"]
[Date "2019.06.04"]
[Round "7"]
[White "enriquetejedor"]
[Black "Keithonsky"]
[Result "1-0"]
[WhiteElo "2553"]
[BlackElo "2503"]
[TimeControl "180+2"]
[EndTime "14:34:15 PDT"]
[Termination "enriquetejedor won by checkmate"]

1. e4 {[%clk 0:02:23]} 1... e6 {[%clk 0:03:01]} 2. d4 {[%clk 0:02:20.9]} 2... d5
{[%clk 0:03:02.9]} 3. Nc3 {[%clk 0:02:18.7]} 3... dxe4 {[%clk 0:03:03.6]} 4.
Nxe4 {[%clk 0:02:18.7]} 4... Nd7 {[%clk 0:03:05.5]} 5. Nf3 {[%clk 0:02:19.4]}
5... Ngf6 {[%clk 0:03:07.4]} 6. Nxf6+ {[%clk 0:02:21]} 6... Nxf6 {[%clk
0:03:09.3]} 7. Bd3 {[%clk 0:02:22.6]} 7... c5 {[%clk 0:03:10.9]} 8. dxc5 {[%clk
0:02:14.7]} 8... Bxc5 {[%clk 0:03:10.8]} 9. O-O {[%clk 0:02:13.5]} 9... O-O
{[%clk 0:03:12]} 10. Qe2 {[%clk 0:02:10.2]} 10... b6 {[%clk 0:03:11.7]} 11. Rd1
{[%clk 0:01:43.2]} 11... Qe7 {[%clk 0:03:06.3]} 12. Ba6 {[%clk 0:01:22.2]} 12...
Rd8 {[%clk 0:03:00]} 13. Rxd8+ {[%clk 0:01:16.9]} 13... Qxd8 {[%clk 0:02:59.8]}
14. Bxc8 {[%clk 0:01:14.8]} 14... Rxc8 {[%clk 0:03:00.1]} 15. Bg5 {[%clk
0:01:15.9]} 15... h6 {[%clk 0:03:00.9]} 16. Rd1 {[%clk 0:01:09.1]} 16... Qe7
{[%clk 0:03:00.9]} 17. Bh4 {[%clk 0:01:06.4]} 17... Rd8 {[%clk 0:02:56.1]} 18.
Rxd8+ {[%clk 0:01:04.6]} 18... Qxd8 {[%clk 0:02:58]} 19. c3 {[%clk 0:01:01.3]}
19... g5 {[%clk 0:02:52.3]} 20. Bg3 {[%clk 0:01:02.1]} 20... Qd5 {[%clk
0:02:53.8]} 21. a3 {[%clk 0:01:02.2]} 21... Ne4 {[%clk 0:02:55.1]} 22. Kf1
{[%clk 0:00:55.8]} 22... f5 {[%clk 0:02:52.7]} 23. Bb8 {[%clk 0:00:54.1]} 23...
g4 {[%clk 0:02:49.9]} 24. Nd4 {[%clk 0:00:52]} 24... Bxd4 {[%clk 0:02:50.2]} 25.
cxd4 {[%clk 0:00:53.1]} 25... Qxd4 {[%clk 0:02:44.7]} 26. Bxa7 {[%clk
0:00:52.6]} 26... h5 {[%clk 0:02:39.9]} 27. f3 {[%clk 0:00:49.5]} 27... gxf3
{[%clk 0:02:33.8]} 28. gxf3 {[%clk 0:00:50.2]} 28... Ng5 {[%clk 0:02:29.5]} 29.
h4 {[%clk 0:00:51.1]} 29... Qxh4 {[%clk 0:02:28.7]} 30. Bxb6 {[%clk 0:00:49]}
30... Qh1+ {[%clk 0:02:28.5]} 31. Bg1 {[%clk 0:00:48.4]} 31... Qh4 {[%clk
0:02:16.2]} 32. Be3 {[%clk 0:00:35.9]} 32... f4 {[%clk 0:02:17.5]} 33. Bg1
{[%clk 0:00:33.1]} 33... Kf7 {[%clk 0:02:19]} 34. a4 {[%clk 0:00:33.9]} 34...
Qh3+ {[%clk 0:02:20.2]} 35. Qg2 {[%clk 0:00:35.1]} 35... Qf5 {[%clk 0:02:21.8]}
36. Qe2 {[%clk 0:00:35.7]} 36... Qb1+ {[%clk 0:02:20]} 37. Kg2 {[%clk
0:00:36.5]} 37... h4 {[%clk 0:02:19.4]} 38. a5 {[%clk 0:00:36.9]} 38... h3+
{[%clk 0:02:20.8]} 39. Kh2 {[%clk 0:00:38.1]} 39... Qa2 {[%clk 0:02:20.5]} 40.
a6 {[%clk 0:00:38.4]} 40... e5 {[%clk 0:02:15.8]} 41. a7 {[%clk 0:00:35.5]}
41... e4 {[%clk 0:02:17]} 42. fxe4 {[%clk 0:00:35.6]} 42... f3 {[%clk
0:02:18.4]} 43. Qc2 {[%clk 0:00:35]} 43... Qa5 {[%clk 0:02:17.6]} 44. Qc4+
{[%clk 0:00:32.7]} 44... Kg6 {[%clk 0:02:17.6]} 45. Qc6+ {[%clk 0:00:32.8]}
45... Kh5 {[%clk 0:02:14.4]} 46. a8=Q {[%clk 0:00:33.7]} 46... Qe5+ {[%clk
0:02:15.2]} 47. Kh1 {[%clk 0:00:33.9]} 47... Qxb2 {[%clk 0:02:01.2]} 48. Qae8+
{[%clk 0:00:25.1]} 48... Kh4 {[%clk 0:02:02.5]} 49. Qh6+ {[%clk 0:00:23.5]}
49... Kg4 {[%clk 0:02:03.1]} 50. Qeh5+ {[%clk 0:00:21.9]} 50... Kg3 {[%clk
0:02:03.5]} 51. Q6xg5# {[%clk 0:00:22.2]} 1-0